fUSD/lending_fUSD_20250823
["ID","MTS","AMOUNT","RATE_DAILY","PERIOD"]
[380993309,1755930678580,-629.55,0.00014246,2]
[380993310,1755930678589,-976.57,0.00014246,2]
[380993311,1755930678599,-400.0,0.00014246,2]
[380993312,1755930678608,-707.96,0.00014246,2]
[380993313,1755930678617,-400.0,0.00014246,2]
[380993314,1755930678626,-548.63,0.00014246,2]
[380993315,1755930678636,-696.63,0.00014246,2]
[380993316,1755930678646,-548.08,0.00014246,2]
[380993317,1755930678655,-421.64,0.00014246,2]
[380993318,1755930678664,-1327.74,0.00014246,2]
[380993319,1755930678674,-400.0,0.00014246,2]
[380993320,1755930678684,-408.25,0.00014246,2]
[380993321,1755930678693,-666.95,0.00014246,2]
[380993322,1755930678702,-400.0,0.00014246,2]
[380993323,1755930678711,-400.0,0.00014246,2]
[380993324,1755930678721,-400.0,0.00014246,2]
[380993325,1755930678730,-478.81,0.00014246,2]
[380993326,1755930678739,-400.0,0.00014246,2]
[380993327,1755930678749,-400.0,0.00014246,2]
[380993328,1755930678758,-475.87,0.00014246,2]
[380993329,1755930678767,-752.44,0.00014246,2]
[380993330,1755930678776,-553.32,0.00014246,2]
[380993331,1755930678786,-414.48,0.00014246,2]
[380993332,1755930678795,-598.85,0.00014246,2]
[380993333,1755930678805,-400.83620604,0.00014246,2]
[380993334,1755930678815,-400.0,0.00014246,2]
[380993335,1755930678825,-400.0,0.00014246,2]
[380993336,1755930678834,-418.3,0.00014246,2]
[380993337,1755930678843,-400.0,0.00014246,2]
[380993338,1755930678853,-977.36,0.00014246,2]
[380993339,1755930678863,-558.79,0.00014246,2]
[380993340,1755930678872,-590.73,0.00014246,2]
[380993341,1755930678882,-400.0,0.00014246,2]
[380993342,1755930678892,-400.0,0.00014246,2]
[380993343,1755930678901,-400.0,0.00014246,2]
[380993344,1755930678911,-179.82,0.00014246,2]
[380993345,1755930678920,-400.0,0.00014246,2]
[380993346,1755930678929,-400.0,0.00014246,2]
[380993347,1755930678939,-400.0,0.00014246,2]
[380993348,1755930678949,-400.0,0.00014246,2]
[380993349,1755930678958,-400.0,0.00014246,2]
[380993350,1755930678968,-400.0,0.00014246,2]
[380993351,1755930678977,-1058.0,0.00014246,2]
[380993352,1755930678987,-595.73,0.00014246,2]
[380993353,1755930678996,-792.12,0.00014246,2]
[380993354,1755930679006,-490.78,0.00014246,2]
[380993355,1755930679015,-400.0,0.00014246,2]
[380993356,1755930679025,-400.0,0.00014246,2]
[380993357,1755930679034,-400.0,0.00014246,2]
[380993358,1755930679044,-400.0,0.00014246,2]
[380993359,1755930679053,-664.29,0.00014246,2]
[380993360,1755930679063,-400.0,0.00014246,2]
[380993361,1755930679072,-400.0,0.00014246,2]
[380993362,1755930679082,-603.04,0.00014246,2]
[380993363,1755930679091,-894.08,0.00014246,2]
[380993364,1755930679101,-400.0,0.00014246,2]
[380993365,1755930679110,-419.15,0.00014246,2]
[380993366,1755930679120,-400.0,0.00014246,2]
[380993367,1755930679129,-400.0,0.00014246,2]
[380993368,1755930679140,-538.29,0.00014246,2]
[380993369,1755930679149,-400.0,0.00014246,2]
[380993370,1755930679159,-400.0,0.00014246,2]
[380993371,1755930679168,-400.0,0.00014246,2]
[380993372,1755930679178,-855.49,0.00014246,2]
[380993373,1755930679187,-390.99171952,0.00014246,2]
[380993374,1755930679197,-400.0,0.00014246,2]
[380993375,1755930679206,-423.93,0.00014246,2]
[380993376,1755930679216,-400.0,0.00014246,2]
[380993377,1755930679226,-509.54,0.00014246,2]
[380993378,1755930679235,-633.58,0.00014246,2]
[380993379,1755930679245,-400.0,0.00014246,2]
[380993380,1755930679254,-400.0,0.00014246,2]
[380993381,1755930679264,-3166.9,0.00014246,2]
[380993382,1755930679277,-400.0,0.00014246,2]
[380993383,1755930679287,-400.0,0.00014246,2]
[380993384,1755930679297,-532.83,0.00014246,2]
[380993385,1755930679306,-400.0,0.00014246,2]
[380993386,1755930679316,-462.81,0.00014246,2]
[380993387,1755930679326,-487.36,0.00014246,2]
[380993388,1755930679335,-712.9,0.00014246,2]
[380993389,1755930679345,-571.73,0.00014246,2]
[380993390,1755930679356,-761.19,0.00014246,2]
[380993391,1755930679366,-990.26,0.00014246,2]
[380993392,1755930679375,-781.23,0.00014246,2]
[380993393,1755930679384,-400.0,0.00014246,2]
[380993394,1755930679394,-400.0,0.00014246,2]
[380993395,1755930679403,-402.5538804,0.00014246,2]
[380993396,1755930679413,-342.48210321,0.00014246,2]
[380993397,1755930679423,-400.0,0.00014246,2]
[380993398,1755930679433,-713.0,0.00014246,2]
[380993399,1755930679442,-594.22,0.00014246,2]
[380993400,1755930679452,-355.42484898,0.00014246,2]
[380993401,1755930679461,-400.0,0.00014246,2]
[380993402,1755930679471,-736.28,0.00014246,2]
[380993403,1755930679480,-400.0,0.00014246,2]
[380993404,1755930679490,-715.03,0.00014246,2]
[380993405,1755930679499,-400.0,0.00014246,2]
[380993406,1755930679508,-441.42,0.00014246,2]
[380993407,1755930679518,-931.43,0.00014246,2]
[380993408,1755930679528,-942.63,0.00014246,2]
[380993409,1755930679539,-400.0,0.00014246,2]
[380993410,1755930679548,-602.5,0.00014246,2]
[380993411,1755930679558,-649.04,0.00014246,2]
[380993412,1755930679568,-400.0,0.00014246,2]
[380993413,1755930679577,-553.23,0.00014246,2]
[380993414,1755930679586,-400.0,0.00014246,2]
[380993415,1755930679596,-720.71,0.00014246,2]
[380993416,1755930679605,-419.63,0.00014246,2]
[380993417,1755930679615,-624.59,0.00014246,2]
[380993418,1755930679624,-797.24,0.00014246,2]
[380993419,1755930679634,-400.0,0.00014246,2]
[380993420,1755930679644,-400.0,0.00014246,2]
[380993421,1755930679654,-400.0,0.00014246,2]
[380993422,1755930679663,-587.49,0.00014246,2]
[380993423,1755930679674,-2151.45,0.00014246,2]
[380993424,1755930679684,-400.0,0.00014246,2]
[380993425,1755930679693,-400.0,0.00014246,2]
[380993426,1755930679703,-400.0,0.00014246,2]
[380993427,1755930679712,-400.0,0.00014246,2]
[380993428,1755930679721,-690.44,0.00014246,2]
[380993429,1755930679731,-692.13,0.00014246,2]
[380993430,1755930679740,-697.05,0.00014246,2]
[380993431,1755930679750,-731.85,0.00014246,2]
[380993432,1755930679760,-400.0,0.00014246,2]
[380993433,1755930679769,-400.0,0.00014246,2]
[380993434,1755930679779,-874.21,0.00014246,2]
[380993435,1755930679788,-542.89,0.00014246,2]
[380993436,1755930679797,-400.71128132,0.00014246,2]
[380993437,1755930679806,-513.06,0.00014246,2]
[380993438,1755930679816,-460.59,0.00014246,2]
[380993439,1755930679826,-416.02,0.00014246,2]
[380993440,1755930679835,-400.0,0.00014246,2]
[380993441,1755930679845,-400.0,0.00014246,2]
[380993442,1755930679854,-764.63,0.00014246,2]
[380993443,1755930679864,-512.62,0.00014246,2]
[380993444,1755930679873,-400.0,0.00014246,2]
[380993445,1755930679883,-436.53,0.00014246,2]
[380993446,1755930679895,-400.0,0.00014246,2]
[380993447,1755930679904,-692.03,0.00014246,2]
[380993448,1755930679914,-418.83,0.00014246,2]
[380993449,1755930679923,-400.0,0.00014246,2]
[380993450,1755930679933,-1343.83,0.00014246,2]
[380993451,1755930679942,-400.0,0.00014246,2]
[380993452,1755930679952,-617.12,0.00014246,2]
[380993453,1755930679961,-400.0,0.00014246,2]
[380993454,1755930679971,-764.95,0.00014246,2]
[380993455,1755930679980,-400.0,0.00014246,2]
[380993456,1755930679990,-400.0,0.00014246,2]
[380993457,1755930680000,-704.81,0.00014246,2]
[380993458,1755930680010,-402.96536814,0.00014246,2]
[380993459,1755930680020,-657.79,0.00014246,2]
[380993460,1755930680029,-400.0,0.00014246,2]
[380993461,1755930680038,-1027.02,0.00014246,2]
[380993462,1755930680048,-677.4,0.00014246,2]
[380993463,1755930680058,-400.0,0.00014246,2]
[380993464,1755930680067,-400.0,0.00014246,2]
[380993465,1755930680078,-400.0,0.00014246,2]
[380993466,1755930680088,-400.0,0.00014246,2]
[380993467,1755930680097,-400.0,0.00014246,2]
[380993468,1755930680107,-400.0,0.00014246,2]
[380993469,1755930680117,-402.26432016,0.00014246,2]
[380993471,1755930680128,-400.0,0.00014246,2]
[380993472,1755930680137,-817.2,0.00014246,2]
[380993473,1755930680148,-400.0,0.00014246,2]
[380993474,1755930680158,-1019.45,0.00014246,2]
[380993475,1755930680167,-500.32,0.00014246,2]
[380993476,1755930680176,-400.0,0.00014246,2]
[380993477,1755930680186,-400.0,0.00014246,2]
[380993478,1755930680195,-554.8,0.00014246,2]
[380993479,1755930680206,-632.54,0.00014246,2]
[380993480,1755930680216,-624.73,0.00014246,2]
[380993481,1755930680226,-739.16,0.00014246,2]
[380993482,1755930680235,-583.62,0.00014246,2]
[380993483,1755930680245,-853.25,0.00014246,2]
[380993484,1755930680254,-400.0,0.00014246,2]
[380993485,1755930680263,-400.0,0.00014246,2]
[380993486,1755930680275,-12873.11,0.00014246,2]
[380993487,1755930680284,-400.0,0.00014246,2]
[380993488,1755930680294,-990.21,0.00014246,2]
[380993489,1755930680303,-400.0,0.00014246,2]
[380993490,1755930680313,-400.0,0.00014246,2]
[380993491,1755930680323,-400.0,0.00014246,2]
[380993492,1755930680332,-400.0,0.00014246,2]
[380993493,1755930680343,-588.98,0.00014246,2]
[380993494,1755930680353,-897.81,0.00014246,2]
[380993495,1755930680363,-799.46,0.00014246,2]
[380993496,1755930680372,-646.95,0.00014246,2]
[380993497,1755930680382,-418.63,0.00014246,2]
[380993498,1755930680391,-987.03,0.00014246,2]
[380993499,1755930680401,-435.65,0.00014246,2]
[380993500,1755930680410,-453.72,0.00014246,2]
[380993501,1755930680419,-558.93,0.00014246,2]
[380993502,1755930680429,-421.41,0.00014246,2]
[380993503,1755930680438,-400.0,0.00014246,2]
[380993504,1755930680448,-400.0,0.00014246,2]
[380993505,1755930680457,-502.57552503,0.00014246,2]
[380993506,1755930680468,-801.09,0.00014246,2]
[380993507,1755930680477,-940.82,0.00014246,2]
[380993508,1755930680486,-400.0,0.00014246,2]
[380993509,1755930680496,-402.52753291,0.00014246,2]
[380993510,1755930680505,-1045.55,0.00014246,2]
[380993511,1755930680515,-738.24,0.00014246,2]
[380993512,1755930680525,-400.0,0.00014246,2]
[380993513,1755930680534,-400.0,0.00014246,2]
[380993514,1755930680544,-941.53,0.00014246,2]
[380993515,1755930680554,-1129.74,0.00014246,2]
[380993516,1755930680563,-1172.0,0.00014246,2]
[380993517,1755930680573,-400.0,0.00014246,2]
[380993518,1755930680582,-1384.75,0.00014246,2]
[380993519,1755930680591,-400.0,0.00014246,2]
[380993520,1755930680601,-740.0,0.00014246,2]
[380993521,1755930680610,-419.05,0.00014246,2]
[380993522,1755930680619,-831.91,0.00014246,2]
[380993523,1755930680628,-778.45,0.00014246,2]
[380993524,1755930680638,-400.0,0.00014246,2]
[380993525,1755930680648,-400.0,0.00014246,2]
[380993526,1755930680658,-1047.67,0.00014246,2]
[380993527,1755930680667,-400.0,0.00014246,2]
[380993528,1755930680676,-407.06,0.00014246,2]
[380993529,1755930680685,-400.0,0.00014246,2]
[380993530,1755930680694,-640.87,0.00014246,2]
[380993531,1755930680704,-400.0,0.00014246,2]
[380993532,1755930680713,-406.8,0.00014246,2]
[380993533,1755930680722,-620.0,0.00014246,2]
[380993534,1755930680732,-400.0,0.00014246,2]
[380993535,1755930680741,-566.33,0.00014246,2]
[380993536,1755930680750,-400.0,0.00014246,2]
[380993537,1755930680759,-1110.17,0.00014246,2]
[380993538,1755930680769,-428.51,0.00014246,2]
[380993539,1755930680779,-400.0,0.00014246,2]
[380993540,1755930680789,-643.19,0.00014246,2]
[380993541,1755930680799,-1114.49,0.00014246,2]
[380993542,1755930680808,-716.98,0.00014246,2]
[380993543,1755930680817,-400.0,0.00014246,2]
[380993544,1755930680827,-1209.16,0.00014246,2]
[380993545,1755930680836,-458.89,0.00014246,2]
[380993546,1755930680845,-400.0,0.00014246,2]
[380993547,1755930680854,-400.0,0.00014246,2]
[380993548,1755930680864,-626.95,0.00014246,2]
[380993549,1755930680874,-932.5,0.00014246,2]
[380993550,1755930680883,-893.99,0.00014246,2]
[380993551,1755930680892,-400.0,0.00014246,2]
[380993552,1755930680901,-640.9,0.00014246,2]
[380993553,1755930680911,-400.0,0.00014246,2]
[380993554,1755930680920,-1077.14,0.00014246,2]
[380993555,1755930680929,-400.0,0.00014246,2]
[380993556,1755930680939,-400.0,0.00014246,2]
[380993557,1755930680948,-182.18374894,0.00014246,2]
[380993558,1755930680957,-1129.31,0.00014246,2]
[380993559,1755930680966,-897.5,0.00014246,2]
[380993560,1755930680976,-928.82,0.00014246,2]
[380993561,1755930680985,-985.74,0.00014246,2]
[380993562,1755930680994,-681.69,0.00014246,2]
[380993563,1755930681003,-584.91,0.00014246,2]
[380993564,1755930681012,-400.0,0.00014246,2]
[380993565,1755930681022,-1594.64,0.00014246,2]
[380993566,1755930681032,-672.3,0.00014246,2]
[380993567,1755930681041,-400.0,0.00014246,2]
[380993568,1755930681051,-486.38,0.00014246,2]
[380993569,1755930681060,-482.01,0.00014246,2]
[380993570,1755930681069,-801.05,0.00014246,2]
[380993571,1755930681078,-705.27,0.00014246,2]
[380993572,1755930681087,-649.64,0.00014246,2]
[380993573,1755930681097,-611.51,0.00014246,2]
[380993574,1755930681106,-504.22,0.00014246,2]
[380993575,1755930681115,-475.16,0.00014246,2]
[380993576,1755930681125,-400.0,0.00014246,2]
[380993577,1755930681134,-400.0,0.00014246,2]
[380993578,1755930681143,-810.53,0.00014246,2]
[380993579,1755930681152,-753.61,0.00014246,2]
[380993580,1755930681162,-400.0,0.00014246,2]
[380993581,1755930681171,-400.0,0.00014246,2]
[380993582,1755930681181,-667.17,0.00014246,2]
[380993583,1755930681190,-2291.05,0.00014246,2]
[380993584,1755930681199,-1407.45,0.00014246,2]
[380993585,1755930681209,-446.02,0.00014246,2]
[380993586,1755930681218,-508.92,0.00014246,2]
[380993587,1755930681228,-400.0,0.00014246,2]
[380993588,1755930681237,-616.47,0.00014246,2]
[380993589,1755930681247,-696.36,0.00014246,2]
[380993590,1755930681257,-400.0,0.00014246,2]
[380993591,1755930681266,-881.54,0.00014246,2]
[380993592,1755930681278,-855.52,0.00014246,2]
[380993593,1755930681287,-400.0,0.00014246,2]
[380993594,1755930681296,-1014.43,0.00014246,2]
[380993595,1755930681306,-400.0,0.00014246,2]
[380993596,1755930681318,-400.0,0.00014246,2]
[380993597,1755930681328,-400.0,0.00014246,2]
[380993598,1755930681338,-1284.58,0.00014246,2]
[380993599,1755930681349,-866.11,0.00014246,2]
[380993600,1755930681360,-440.11,0.00014246,2]
[380993601,1755930681370,-729.3,0.00014246,2]
[380993602,1755930681379,-400.0,0.00014246,2]
[380993603,1755930681389,-477.59,0.00014246,2]
[380993604,1755930681400,-400.0,0.00014246,2]
[380993605,1755930681411,-400.0,0.00014246,2]
[380993606,1755930681423,-520.35,0.00014246,2]
[380993607,1755930681432,-772.76,0.00014246,2]
[380993608,1755930681442,-656.46,0.00014246,2]
[380993609,1755930681451,-1238.33,0.00014246,2]
[380993610,1755930681461,-400.0,0.00014246,2]
[380993611,1755930681470,-400.0,0.00014246,2]
[380993612,1755930681479,-400.0,0.00014246,2]
[380993613,1755930681489,-400.0,0.00014246,2]
[380993614,1755930681498,-892.57,0.00014246,2]
[380993615,1755930681507,-400.0,0.00014246,2]
[380993616,1755930681517,-400.0,0.00014246,2]
[380993617,1755930681527,-600.2,0.00014246,2]
[380993618,1755930681536,-400.0,0.00014246,2]
[380993619,1755930681546,-602.88,0.00014246,2]
[380993620,1755930681555,-590.02,0.00014246,2]
[380993621,1755930681564,-736.8,0.00014246,2]
[380993622,1755930681574,-1076.13,0.00014246,2]
[380993623,1755930681583,-400.0,0.00014246,2]
[380993624,1755930681593,-400.0,0.00014246,2]
[380993625,1755930681603,-1141.99,0.00014246,2]
[380993626,1755930681612,-400.0,0.00014246,2]
[380993627,1755930681621,-451.08,0.00014246,2]
[380993628,1755930681631,-562.1,0.00014246,2]
[380993629,1755930681640,-400.0,0.00014246,2]
[380993630,1755930681651,-573.5,0.00014246,2]
[380993631,1755930681660,-821.55,0.00014246,2]
[380993632,1755930681670,-1096.32,0.00014246,2]
[380993633,1755930681679,-463.18,0.00014246,2]
[380993634,1755930681689,-624.58,0.00014246,2]
[380993635,1755930681698,-1352.51,0.00014246,2]
[380993636,1755930681707,-1117.58,0.00014246,2]
[380993637,1755930681717,-400.0,0.00014246,2]
[380993638,1755930681726,-1337.58,0.00014246,2]
[380993639,1755930681735,-1340.25,0.00014246,2]
[380993640,1755930681745,-930.86,0.00014246,2]
[380993641,1755930681754,-491.34,0.00014246,2]
[380993642,1755930681764,-400.0,0.00014246,2]
[380993643,1755930681773,-871.98,0.00014246,2]
[380993644,1755930681782,-546.89,0.00014246,2]
[380993645,1755930681792,-734.61,0.00014246,2]
[380993646,1755930681801,-1287.92,0.00014246,2]
[380993647,1755930681810,-1082.98,0.00014246,2]
[380993648,1755930681820,-944.89,0.00014246,2]
[380993649,1755930681829,-400.0,0.00014246,2]
[380993650,1755930681838,-802.48,0.00014246,2]
[380993651,1755930681848,-400.0,0.00014246,2]
[380993652,1755930681857,-493.59,0.00014246,2]
[380993653,1755930681867,-411.6,0.00014246,2]
[380993654,1755930681876,-400.0,0.00014246,2]
[380993655,1755930681886,-794.21,0.00014246,2]
[380993656,1755930681896,-548.11,0.00014246,2]
[380993657,1755930681906,-445.1,0.00014246,2]
[380993658,1755930681915,-581.6,0.00014246,2]
[380993659,1755930681924,-1006.63,0.00014246,2]
[380993660,1755930681934,-400.0,0.00014246,2]
[380993661,1755930681943,-1523.05,0.00014246,2]
[380993662,1755930681952,-400.0,0.00014246,2]
[380993663,1755930682178,-454.19,0.00014246,2]
[380993664,1755930682188,-567.41,0.00014246,2]
[380993665,1755930682198,-540.12,0.00014246,2]
[380993666,1755930682208,-541.18,0.00014246,2]
[380993667,1755930682217,-1038.57,0.00014246,2]
[380993668,1755930682227,-760.57,0.00014246,2]
[380993669,1755930682237,-1120.03,0.00014246,2]
[380993670,1755930682246,-400.0,0.00014246,2]
[380993671,1755930682256,-400.0,0.00014246,2]
[380993672,1755930682265,-1113.52,0.00014246,2]
[380993673,1755930682280,-584.57,0.00014246,2]
[380993674,1755930682290,-400.0,0.00014246,2]
[380993675,1755930682300,-684.51,0.00014246,2]
[380993676,1755930682310,-904.27,0.00014246,2]
[380993677,1755930682320,-660.57,0.00014246,2]
[380993678,1755930682329,-1031.27,0.00014246,2]
[380993679,1755930682339,-871.26,0.00014246,2]
[380993680,1755930682350,-923.07,0.00014246,2]
[380993681,1755930682360,-986.27,0.00014246,2]
[380993682,1755930682370,-1872.47,0.00014246,2]
[380993683,1755930682381,-1016.95,0.00014246,2]
[380993684,1755930682391,-768.72,0.00014246,2]
[380993685,1755930682405,-400.0,0.00014246,2]
[380993686,1755930682415,-994.88,0.00014246,2]
[380993687,1755930682424,-400.0,0.00014246,2]
[380993688,1755930682434,-1031.23,0.00014246,2]
[380993689,1755930682443,-571.58,0.00014246,2]
[380993690,1755930682454,-647.53,0.00014246,2]
[380993691,1755930682464,-775.88,0.00014246,2]
[380993692,1755930682474,-400.0,0.00014246,2]
[380993693,1755930682484,-605.11,0.00014246,2]
[380993694,1755930682494,-400.0,0.00014246,2]
[380993695,1755930682504,-908.13,0.00014246,2]
[380993696,1755930682514,-405.51,0.00014246,2]
[380993697,1755930682523,-639.89,0.00014246,2]
[380993698,1755930682532,-402.71,0.00014246,2]
[380993699,1755930682542,-999.76,0.00014246,2]
[380993700,1755930682551,-400.0,0.00014246,2]
[380993701,1755930682561,-968.0,0.00014246,2]
[380993702,1755930682571,-834.9,0.00014246,2]
[380993703,1755930682580,-1449.64,0.00014246,2]
[380993704,1755930682590,-838.11,0.00014246,2]
[380993705,1755930682599,-400.0,0.00014246,2]
[380993706,1755930682608,-764.67,0.00014246,2]
[380993707,1755930682618,-873.94,0.00014246,2]
[380993708,1755930682628,-400.0,0.00014246,2]
[380993709,1755930682637,-747.31,0.00014246,2]
[380993710,1755930682648,-839.44,0.00014246,2]
[380993711,1755930682658,-402.87,0.00014246,2]
[380993712,1755930682667,-400.0,0.00014246,2]
[380993713,1755930682677,-400.0,0.00014246,2]
[380993714,1755930682687,-400.0,0.00014246,2]
[380993715,1755930682697,-496.75,0.00014246,2]
[380993716,1755930682706,-514.65,0.00014246,2]
[380993717,1755930682715,-2296.87,0.00014246,2]
[380993718,1755930682726,-400.0,0.00014246,2]
[380993719,1755930682735,-400.0,0.00014246,2]
[380993720,1755930682745,-400.0,0.00014246,2]
[380993721,1755930682755,-1231.43,0.00014246,2]
[380993722,1755930682765,-400.0,0.00014246,2]
[380993723,1755930682775,-1067.81,0.00014246,2]
[380993724,1755930682784,-400.0,0.00014246,2]
[380993725,1755930682794,-1143.89,0.00014246,2]
[380993726,1755930682804,-402.12698166,0.00014246,2]
[380993727,1755930682813,-400.0,0.00014246,2]
[380993728,1755930682823,-1043.98,0.00014246,2]
[380993729,1755930682833,-621.01,0.00014246,2]
[380993730,1755930682844,-471.83,0.00014246,2]
[380993731,1755930682853,-1047.41,0.00014246,2]
[380993732,1755930682863,-400.0,0.00014246,2]
[380993733,1755930682872,-688.55,0.00014246,2]
[380993734,1755930682882,-2024.11,0.00014246,2]
[380993735,1755930682892,-400.0,0.00014246,2]
[380993736,1755930682903,-400.0,0.00014246,2]
[380993737,1755930682913,-702.78,0.00014246,2]
[380993738,1755930682922,-1569.0,0.00014246,2]
[380993739,1755930682931,-400.0,0.00014246,2]
[380993740,1755930682941,-1557.8,0.00014246,2]
[380993741,1755930682950,-562.49,0.00014246,2]
[380993742,1755930682969,-400.0,0.00014246,2]
[380993743,1755930682980,-1015.96,0.00014246,2]
[380993744,1755930682989,-704.74,0.00014246,2]
[380993745,1755930683000,-415.83,0.00014246,2]
[380993746,1755930683010,-1619.12,0.00014246,2]
[380993747,1755930683019,-873.77,0.00014246,2]
[380993748,1755930683029,-603.17,0.00014246,2]
[380993749,1755930683039,-517.69841439,0.00014246,2]
[380993750,1755930683048,-1020.89,0.00014246,2]
[380993751,1755930683058,-718.17,0.00014246,2]
[380993752,1755930683069,-1397.26,0.00014246,2]
[380993753,1755930683078,-779.46,0.00014246,2]
[380993754,1755930683088,-659.51,0.00014246,2]
[380993755,1755930683098,-400.0,0.00014246,2]
[380993756,1755930683108,-305.05181913,0.00014246,2]
[380993757,1755930683117,-796.66,0.00014246,2]
[380993758,1755930683127,-400.0,0.00014246,2]
[380993759,1755930683138,-1242.26,0.00014246,2]
[380993760,1755930683148,-873.13,0.00014246,2]
[380993761,1755930683158,-400.0,0.00014246,2]
[380993762,1755930683168,-535.86,0.00014246,2]
[380993763,1755930683178,-400.0,0.00014246,2]
[380993764,1755930683187,-607.83,0.00014246,2]
[380993765,1755930683197,-400.0,0.00014246,2]
[380993766,1755930683206,-400.0,0.00014246,2]
[380993767,1755930683216,-400.0,0.00014246,2]
[380993768,1755930683225,-400.0,0.00014246,2]
[380993769,1755930683235,-593.25,0.00014246,2]
[380993770,1755930683245,-643.58,0.00014246,2]
[380993771,1755930683255,-734.36,0.00014246,2]
[380993772,1755930683267,-590.01,0.00014246,2]
[380993773,1755930683281,-1009.14,0.00014246,2]
[380993774,1755930683292,-566.68,0.00014246,2]
[380993775,1755930683303,-686.64,0.00014246,2]
[380993776,1755930683313,-821.45,0.00014246,2]
[380993777,1755930683323,-1020.13,0.00014246,2]
[380993778,1755930683332,-739.95,0.00014246,2]
[380993779,1755930683342,-752.12,0.00014246,2]
[380993780,1755930683352,-400.0,0.00014246,2]
[380993781,1755930683362,-567.76,0.00014246,2]
[380993782,1755930683372,-749.2,0.00014246,2]
[380993783,1755930683387,-1008.59,0.00014246,2]
[380993784,1755930683398,-297.19164876,0.00014246,2]
[380993785,1755930683408,-676.25,0.00014246,2]
[380993786,1755930683419,-782.78,0.00014246,2]
[380993787,1755930683434,-541.18738501,0.00014246,2]
[380993788,1755930683444,-761.24,0.00014246,2]
[380993789,1755930683454,-1360.81,0.00014246,2]
[380993790,1755930683464,-512.32,0.00014246,2]
[380993791,1755930683475,-696.26,0.00014246,2]
[380993792,1755930683486,-1871.16,0.00014246,2]
[380993793,1755930683496,-400.0,0.00014246,2]
[380993794,1755930683506,-408.99,0.00014246,2]
[380993795,1755930683516,-638.4,0.00014246,2]
[380993796,1755930683526,-491.72,0.00014246,2]
[380993797,1755930683536,-400.0,0.00014246,2]
[380993798,1755930683547,-400.0,0.00014246,2]
[380993799,1755930683556,-633.69,0.00014246,2]
[380993800,1755930683566,-400.0,0.00014246,2]
[380993801,1755930683576,-1307.02,0.00014246,2]
[380993802,1755930683586,-515.86,0.00014246,2]
[380993803,1755930683596,-718.67,0.00014246,2]
[380993804,1755930683607,-553.1,0.00014246,2]
[380993805,1755930683617,-459.89,0.00014246,2]
[380993806,1755930683627,-807.4,0.00014246,2]
[380993807,1755930683636,-620.72,0.00014246,2]
[380993808,1755930683646,-1259.98,0.00014246,2]
[380993809,1755930683656,-928.31,0.00014246,2]